{"text_format":"3","workbook":"xlsx","n_sheets":1,"sheets":["Informe de gastos"],"not_rendered":{"images":2,"defined_names":12},"read":"whole","date_system":"1900"}

{"sheet":"Informe de gastos","index":0,"n_rows":24,"n_cols":13,"rows_kept":24,"merged":[[3,2,3,3],[3,5,3,6],[3,9,3,10],[4,2,4,3],[4,5,4,6],[4,9,4,10],[5,2,5,3],[5,5,5,6],[5,9,5,10],[6,2,6,3],[6,5,6,6],[6,9,6,10],[7,9,7,10]]}
[null,"INFORME DE GASTOS"]
[null,"CONTOSO, LTD"]
[null,"123 South Main Street, North Buffalo, Nueva York 12345"]
[null,"TELÉFONO",4255550121,null,"NOMBRE","Naiara Padilla",null,null,"MOTIVO","Seminario anual de ventas",null,"TARIFA DEL KILOMETRAJE",{"v":0.5,"d":"€0.50/km"}]
[null,"FAX",4255550122,null,"DEPARTAMENTO","Ventas",null,null,"INICIO",{"$f":"IFERROR(MIN(Gastos[FECHA]),\"\")","v":"2018-06-04"},null,"TARIFA DE LAS COMIDAS",{"v":30,"d":"€30.00/día"}]
[null,"CORREO ELECTRÓNICO","info@contoso.com",null,"PUESTO","Directora ejecutiva",null,null,"FINALIZACIÓN",{"$f":"IFERROR(MAX(Gastos[FECHA]),\"\")","v":"2018-07-04"},null,"TARIFA DEL HOTEL",{"v":200,"d":"€200.00/noche"}]
[null,"WEB","www.contoso.com",null,"DIRECTOR","Sergio Valladares",null,null,"PREPARADO POR","Naiara Padilla",null,"TARIFA TELEFÓNICA",{"v":10,"d":"€10.00/día"}]
[{"$nulls":8},"APROBADO POR","Sergio Valladares",null,"TARIFA DE GASTOS VARIOS",{"v":50,"d":"€50.00/día"}]
[]
[null,"FECHA","CUENTA","DESCRIPCIÓN","HOTEL","TRANSPORTE","COMIDAS","TELÉFONO","VARIOS","CUENTAKILÓMETROS \nINICIO","CUENTAKILÓMETROS \nFIN","KILOMETRAJE \nTOTAL","TOTAL "]
[null,{"$f":"TODAY()","v":"2018-06-04"},"Ventas","Kilometraje",{"$nulls":4},{"v":50,"d":"50.00 €"},{"v":11378.5,"d":"11,378.5 km"},{"v":11456.2,"d":"11,456.2 km"},{"$f":"IF(COUNTA(Gastos[[#This Row],[CUENTAKILÓMETROS \nINICIO]:[CUENTAKILÓMETROS \nFIN]])=2,(Gastos[[#This Row],[CUENTAKILÓMETROS \nFIN]]-Gastos[[#This Row],[CUENTAKILÓMETROS \nINICIO]])*TarifaKilometraje,\"\")","v":{"v":38.850000000000364,"d":"38.85 €"}},{"$f":"IF(COUNTA(Gastos[[#This Row],[FECHA]:[CUENTAKILÓMETROS \nFIN]])=0,\"\",SUM(Gastos[[#This Row],[HOTEL]:[TRANSPORTE]],Gastos[[#This Row],[COMIDAS]:[VARIOS]],((Gastos[[#This Row],[CUENTAKILÓMETROS \nFIN]]-Gastos[[#This Row],[CUENTAKILÓMETROS \nINICIO]])*(TarifaKilometraje))))","v":{"v":88.85000000000036,"d":"88.85 €"}}]
[null,{"$f":"TODAY()+30","v":"2018-07-04"},"Ventas","Convención",{"v":445,"d":"445.00 €"},{"v":225,"d":"225.00 €"},{"v":20,"d":"20.00 €"},null,{"v":5,"d":"5.00 €"},{"v":11500,"d":"11,500.0 km"},{"v":11560,"d":"11,560.0 km"},{"$f":"IF(COUNTA(Gastos[[#This Row],[CUENTAKILÓMETROS \nINICIO]:[CUENTAKILÓMETROS \nFIN]])=2,(Gastos[[#This Row],[CUENTAKILÓMETROS \nFIN]]-Gastos[[#This Row],[CUENTAKILÓMETROS \nINICIO]])*TarifaKilometraje,\"\")","v":{"v":30,"d":"30.00 €"}},{"$f":"IF(COUNTA(Gastos[[#This Row],[FECHA]:[CUENTAKILÓMETROS \nFIN]])=0,\"\",SUM(Gastos[[#This Row],[HOTEL]:[TRANSPORTE]],Gastos[[#This Row],[COMIDAS]:[VARIOS]],((Gastos[[#This Row],[CUENTAKILÓMETROS \nFIN]]-Gastos[[#This Row],[CUENTAKILÓMETROS \nINICIO]])*(TarifaKilometraje))))","v":{"v":725,"d":"725.00 €"}}]
[{"$nulls":11},{"$f":"IF(COUNTA(Gastos[[#This Row],[CUENTAKILÓMETROS \nINICIO]:[CUENTAKILÓMETROS \nFIN]])=2,(Gastos[[#This Row],[CUENTAKILÓMETROS \nFIN]]-Gastos[[#This Row],[CUENTAKILÓMETROS \nINICIO]])*TarifaKilometraje,\"\")","v":""},{"$f":"IF(COUNTA(Gastos[[#This Row],[FECHA]:[CUENTAKILÓMETROS \nFIN]])=0,\"\",SUM(Gastos[[#This Row],[HOTEL]:[TRANSPORTE]],Gastos[[#This Row],[COMIDAS]:[VARIOS]],((Gastos[[#This Row],[CUENTAKILÓMETROS \nFIN]]-Gastos[[#This Row],[CUENTAKILÓMETROS \nINICIO]])*(TarifaKilometraje))))","v":""}]
[{"$nulls":11},{"$f":"IF(COUNTA(Gastos[[#This Row],[CUENTAKILÓMETROS \nINICIO]:[CUENTAKILÓMETROS \nFIN]])=2,(Gastos[[#This Row],[CUENTAKILÓMETROS \nFIN]]-Gastos[[#This Row],[CUENTAKILÓMETROS \nINICIO]])*TarifaKilometraje,\"\")","v":""},{"$f":"IF(COUNTA(Gastos[[#This Row],[FECHA]:[CUENTAKILÓMETROS \nFIN]])=0,\"\",SUM(Gastos[[#This Row],[HOTEL]:[TRANSPORTE]],Gastos[[#This Row],[COMIDAS]:[VARIOS]],((Gastos[[#This Row],[CUENTAKILÓMETROS \nFIN]]-Gastos[[#This Row],[CUENTAKILÓMETROS \nINICIO]])*(TarifaKilometraje))))","v":""}]
[{"$nulls":11},{"$f":"IF(COUNTA(Gastos[[#This Row],[CUENTAKILÓMETROS \nINICIO]:[CUENTAKILÓMETROS \nFIN]])=2,(Gastos[[#This Row],[CUENTAKILÓMETROS \nFIN]]-Gastos[[#This Row],[CUENTAKILÓMETROS \nINICIO]])*TarifaKilometraje,\"\")","v":""},{"$f":"IF(COUNTA(Gastos[[#This Row],[FECHA]:[CUENTAKILÓMETROS \nFIN]])=0,\"\",SUM(Gastos[[#This Row],[HOTEL]:[TRANSPORTE]],Gastos[[#This Row],[COMIDAS]:[VARIOS]],((Gastos[[#This Row],[CUENTAKILÓMETROS \nFIN]]-Gastos[[#This Row],[CUENTAKILÓMETROS \nINICIO]])*(TarifaKilometraje))))","v":""}]
[{"$nulls":11},{"$f":"IF(COUNTA(Gastos[[#This Row],[CUENTAKILÓMETROS \nINICIO]:[CUENTAKILÓMETROS \nFIN]])=2,(Gastos[[#This Row],[CUENTAKILÓMETROS \nFIN]]-Gastos[[#This Row],[CUENTAKILÓMETROS \nINICIO]])*TarifaKilometraje,\"\")","v":""},{"$f":"IF(COUNTA(Gastos[[#This Row],[FECHA]:[CUENTAKILÓMETROS \nFIN]])=0,\"\",SUM(Gastos[[#This Row],[HOTEL]:[TRANSPORTE]],Gastos[[#This Row],[COMIDAS]:[VARIOS]],((Gastos[[#This Row],[CUENTAKILÓMETROS \nFIN]]-Gastos[[#This Row],[CUENTAKILÓMETROS \nINICIO]])*(TarifaKilometraje))))","v":""}]
[{"$nulls":11},{"$f":"IF(COUNTA(Gastos[[#This Row],[CUENTAKILÓMETROS \nINICIO]:[CUENTAKILÓMETROS \nFIN]])=2,(Gastos[[#This Row],[CUENTAKILÓMETROS \nFIN]]-Gastos[[#This Row],[CUENTAKILÓMETROS \nINICIO]])*TarifaKilometraje,\"\")","v":""},{"$f":"IF(COUNTA(Gastos[[#This Row],[FECHA]:[CUENTAKILÓMETROS \nFIN]])=0,\"\",SUM(Gastos[[#This Row],[HOTEL]:[TRANSPORTE]],Gastos[[#This Row],[COMIDAS]:[VARIOS]],((Gastos[[#This Row],[CUENTAKILÓMETROS \nFIN]]-Gastos[[#This Row],[CUENTAKILÓMETROS \nINICIO]])*(TarifaKilometraje))))","v":""}]
[{"$nulls":11},{"$f":"IF(COUNTA(Gastos[[#This Row],[CUENTAKILÓMETROS \nINICIO]:[CUENTAKILÓMETROS \nFIN]])=2,(Gastos[[#This Row],[CUENTAKILÓMETROS \nFIN]]-Gastos[[#This Row],[CUENTAKILÓMETROS \nINICIO]])*TarifaKilometraje,\"\")","v":""},{"$f":"IF(COUNTA(Gastos[[#This Row],[FECHA]:[CUENTAKILÓMETROS \nFIN]])=0,\"\",SUM(Gastos[[#This Row],[HOTEL]:[TRANSPORTE]],Gastos[[#This Row],[COMIDAS]:[VARIOS]],((Gastos[[#This Row],[CUENTAKILÓMETROS \nFIN]]-Gastos[[#This Row],[CUENTAKILÓMETROS \nINICIO]])*(TarifaKilometraje))))","v":""}]
[{"$nulls":11},{"$f":"IF(COUNTA(Gastos[[#This Row],[CUENTAKILÓMETROS \nINICIO]:[CUENTAKILÓMETROS \nFIN]])=2,(Gastos[[#This Row],[CUENTAKILÓMETROS \nFIN]]-Gastos[[#This Row],[CUENTAKILÓMETROS \nINICIO]])*TarifaKilometraje,\"\")","v":""},{"$f":"IF(COUNTA(Gastos[[#This Row],[FECHA]:[CUENTAKILÓMETROS \nFIN]])=0,\"\",SUM(Gastos[[#This Row],[HOTEL]:[TRANSPORTE]],Gastos[[#This Row],[COMIDAS]:[VARIOS]],((Gastos[[#This Row],[CUENTAKILÓMETROS \nFIN]]-Gastos[[#This Row],[CUENTAKILÓMETROS \nINICIO]])*(TarifaKilometraje))))","v":""}]
[{"$nulls":11},{"$f":"IF(COUNTA(Gastos[[#This Row],[CUENTAKILÓMETROS \nINICIO]:[CUENTAKILÓMETROS \nFIN]])=2,(Gastos[[#This Row],[CUENTAKILÓMETROS \nFIN]]-Gastos[[#This Row],[CUENTAKILÓMETROS \nINICIO]])*TarifaKilometraje,\"\")","v":""},{"$f":"IF(COUNTA(Gastos[[#This Row],[FECHA]:[CUENTAKILÓMETROS \nFIN]])=0,\"\",SUM(Gastos[[#This Row],[HOTEL]:[TRANSPORTE]],Gastos[[#This Row],[COMIDAS]:[VARIOS]],((Gastos[[#This Row],[CUENTAKILÓMETROS \nFIN]]-Gastos[[#This Row],[CUENTAKILÓMETROS \nINICIO]])*(TarifaKilometraje))))","v":""}]
[{"$nulls":11},{"$f":"IF(COUNTA(Gastos[[#This Row],[CUENTAKILÓMETROS \nINICIO]:[CUENTAKILÓMETROS \nFIN]])=2,(Gastos[[#This Row],[CUENTAKILÓMETROS \nFIN]]-Gastos[[#This Row],[CUENTAKILÓMETROS \nINICIO]])*TarifaKilometraje,\"\")","v":""},{"$f":"IF(COUNTA(Gastos[[#This Row],[FECHA]:[CUENTAKILÓMETROS \nFIN]])=0,\"\",SUM(Gastos[[#This Row],[HOTEL]:[TRANSPORTE]],Gastos[[#This Row],[COMIDAS]:[VARIOS]],((Gastos[[#This Row],[CUENTAKILÓMETROS \nFIN]]-Gastos[[#This Row],[CUENTAKILÓMETROS \nINICIO]])*(TarifaKilometraje))))","v":""}]
[null,"TOTALES",null,null,{"$f":"SUBTOTAL(109,Gastos[HOTEL])","v":{"v":445,"d":"445.00 €"}},{"$f":"SUBTOTAL(109,Gastos[TRANSPORTE])","v":{"v":225,"d":"225.00 €"}},{"$f":"SUBTOTAL(109,Gastos[COMIDAS])","v":{"v":20,"d":"20.00 €"}},{"$f":"SUBTOTAL(109,Gastos[TELÉFONO])","v":0},{"$f":"SUBTOTAL(109,Gastos[VARIOS])","v":{"v":55,"d":"55.00 €"}},{"$nulls":3},{"$f":"SUBTOTAL(109,Gastos[[TOTAL ]])","v":{"v":813.8500000000004,"d":"813.85 €"}}]
[{"$nulls":11},"ANTICIPOS",{"v":0,"d":"0.00 €"}]
[{"$nulls":11},"TOTAL",{"$f":"Gastos[[#Totals],[TOTAL ]]-Anticipos","v":{"v":813.8500000000004,"d":"813.85 €"}}]